fUSD/lending_fUSD_20251014
["ID","MTS","AMOUNT","RATE_DAILY","PERIOD"]
[391293524,1760471437959,-500.0,0.00016428,2]
[391293525,1760471437968,-500.0,0.00016428,2]
[391293526,1760471437977,-2000.0,0.00016428,2]
[391293527,1760471437987,-500.0,0.00016428,2]
[391293528,1760471437996,-2000.0,0.00016428,2]
[391293529,1760471438005,-500.0,0.00016428,2]
[391293530,1760471438014,-2000.0,0.00016428,2]
[391293531,1760471438023,-500.0,0.00016428,2]
[391293533,1760471438033,-2000.0,0.00016428,2]
[391293535,1760471438042,-500.0,0.00016428,2]
[391293537,1760471438051,-2000.0,0.00016428,2]
[391293539,1760471438060,-500.0,0.00016428,2]
[391293541,1760471438069,-284.34786155,0.00016428,2]
[391293543,1760471438078,-2000.0,0.00016428,2]
[391293545,1760471438088,-2000.0,0.00016428,2]
[391293546,1760471438098,-2000.0,0.00016428,2]
[391293548,1760471438108,-2000.0,0.00016428,2]
[391293550,1760471438118,-2000.0,0.00016428,2]
[391293552,1760471438127,-2000.0,0.00016428,2]
[391293553,1760471438136,-2000.0,0.00016428,2]
[391293555,1760471438145,-250.0,0.00016428,2]
[391293557,1760471438155,-2000.0,0.00016428,2]
[391293559,1760471438164,-250.0,0.00016428,2]
[391293560,1760471438174,-2000.0,0.00016428,2]
[391293561,1760471438183,-250.0,0.00016428,2]
[391293562,1760471438192,-250.0,0.00016428,2]
[391293563,1760471438203,-250.0,0.00016428,2]
[391293564,1760471438212,-250.0,0.00016428,2]
[391293565,1760471438221,-250.0,0.00016428,2]
[391293566,1760471438230,-250.0,0.00016428,2]
[391293567,1760471438239,-250.0,0.00016428,2]
[391293568,1760471438249,-250.0,0.00016428,2]
[391293569,1760471438258,-250.0,0.00016428,2]
[391293570,1760471438267,-500.0,0.00016428,2]
[391293571,1760471438277,-500.0,0.00016428,2]
[391293572,1760471438285,-500.0,0.00016428,2]
[391293573,1760471438295,-500.0,0.00016428,2]
[391293574,1760471438304,-500.0,0.00016428,2]
[391293575,1760471438314,-500.0,0.00016428,2]
[391293576,1760471438323,-500.0,0.00016428,2]
[391293577,1760471438331,-500.0,0.00016428,2]
[391293578,1760471438341,-500.0,0.00016428,2]
[391293579,1760471438351,-500.0,0.00016428,2]
[391293580,1760471438361,-500.0,0.00016428,2]
[391293581,1760471438370,-151.0,0.00016428,2]
[391293582,1760471438379,-1201.31606025,0.00016429,5]
[391293583,1760471438388,-215.59869736,0.00016429,2]
[391293584,1760471438398,-165.77051517,0.00016429,2]
[391293585,1760471438407,-29474.93306021,0.0001643,3]
[391293586,1760471438419,-70558.322765,0.0001643,3]
[391293587,1760471438473,-401.748,0.0001643,3]
[391293588,1760471438571,-1038.82018989,0.0001643,3]
[391293594,1760471440164,-666.0,0.0001643,3]
[391293595,1760471440245,-1020.96995003,0.0001643,3]
[391293596,1760471440256,-539.63,0.0001643,3]
[391293597,1760471440373,-348.18498,0.0001643,3]
[391293609,1760471442814,-2734.05599582,0.00016147,2]
[391293610,1760471442824,-2903.95080418,0.0001643,3]
[391293611,1760471442835,-55232.793342,0.0001643,3]
[391293612,1760471442851,-11448.0,0.0001643,3]
[391293614,1760471442973,-22570.51319999,0.0001643,3]
[391293615,1760471442986,-2634620.38245642,0.0001643,3]
[391293636,1760471445758,-11104.698,0.0001643,3]
[391293639,1760471445812,-6288.81067633,0.0001643,3]
[391293645,1760471445867,-17177.77514229,0.0001643,3]
[391293655,1760471445974,-624.91620015,0.0001643,3]
[391293656,1760471445986,-377.5199998,0.0001643,3]
[391293657,1760471446081,-14651.2,0.0001643,3]
[391295054,1760471501061,3411.75,0.00027397,120]
[391295055,1760471544497,300.0,0.00027397,120]
[391295056,1760471558497,717.91581694,0.000273,120]
[391295057,1760471597698,2000.0,0.0002553,120]
[391295058,1760471598052,2000.0,0.00026413,120]
[391295059,1760471598459,2000.0,0.00027297,120]
[391295060,1760471611638,500.0,0.00025263,120]
[391295061,1760471612390,500.0,0.00026763,120]
[391295062,1760471619285,500.0,0.00025544,120]
[391295063,1760471619700,500.0,0.00027325,120]
[391295064,1760471625213,2601.71,0.00027397,120]
[391295065,1760471669580,200.0,0.00027397,120]
[391295066,1760471705773,169.0,0.00027388,120]
[391295076,1760471755373,177.0,0.0002733,120]
[391295077,1760471852347,300.0,0.00027397,120]
[391295078,1760471860601,1000.0,0.00027397,120]
[391295079,1760471895830,1000.0,0.0002738,120]
[391295080,1760471951875,1000.0,0.0002737,120]
[391295082,1760472038794,454.07803979,0.00027397,120]
[391295083,1760472039896,317.20390199,0.00027397,120]
[391295084,1760472041235,310.3601951,0.00027397,120]
[391295085,1760472042197,310.01800975,0.00027397,120]
[391295086,1760472044455,310.00090049,0.00027397,120]
[391295087,1760472047132,1000.0,0.00027397,120]
[391295088,1760472047539,1000.0,0.00027397,120]
[391295089,1760472047623,1000.0,0.00027397,120]
[391295090,1760472047867,1000.0,0.00027397,120]
[391295091,1760472048092,1000.0,0.00027397,120]
[391295092,1760472048332,1000.0,0.00027397,120]
[391295093,1760472048591,1000.0,0.00027397,120]
[391295094,1760472048826,1002.25337934,0.00027397,120]
[391295095,1760472118836,500.0,0.00027397,120]
[391295096,1760472130101,219.0,0.00027397,120]
[391295097,1760472159214,300.0,0.00027397,120]
[391295098,1760472194970,500.0,0.00025133,120]
[391295099,1760472195303,500.0,0.00026503,120]
[391295100,1760472202720,2000.0,0.00024687,120]
[391295101,1760472203132,2000.0,0.00025611,120]
[391295102,1760472203452,2000.0,0.00026534,120]
[391295103,1760472215308,500.0,0.00025446,120]
[391295104,1760472215666,500.0,0.00027129,120]
[391295105,1760472313160,205.72,0.00026986,120]
[391295106,1760472464187,402.67293089,0.00027397,120]
[391295122,1760472631980,-166.66,0.00014589,2]
[391295123,1760472631991,-166.66,0.00014896,2]
[391295124,1760472632000,-166.66,0.00015204,2]
[391295125,1760472632010,-830.4,0.00015246,2]
[391295126,1760472632024,-500.0,0.00015288,2]
[391295127,1760472632033,-150.0,0.00015376,2]
[391295128,1760472632043,-263.39,0.00015392,2]
[391295129,1760472632054,-159.28,0.00015418,2]
[391295130,1760472632064,-200.0,0.0001543,2]
[391295131,1760472632074,-1955.57,0.00015446,2]
[391295132,1760472632083,-150.0,0.00015478,2]
[391295133,1760472632093,-250.0,0.00015478,2]
[391295134,1760472632103,-166.66,0.00015511,2]
[391295135,1760472632117,-546.46,0.00015678,2]
[391295136,1760472632126,-168.17,0.00015678,2]
[391295137,1760472632135,-166.66,0.00015818,2]
[391295138,1760472632145,-1200.0,0.00015849,2]
[391295139,1760472632154,-300.0,0.00015849,2]
[391295140,1760472632164,-17329.6030735,0.0001585,2]
[391295141,1760472632180,-2469.91077924,0.0001585,2]
[391295142,1760472632190,-366.20709964,0.0001585,2]
[391295143,1760472632200,-167.66,0.00015915,2]
[391295144,1760472632209,-806.39119006,0.00016092,2]
[391295145,1760472632219,-166.66,0.00016125,2]
[391295146,1760472632228,-160.0,0.00016287,2]
[391295147,1760472632238,-999.99,0.00016288,2]
[391295148,1760472632248,-150.99,0.00016288,2]
[391295149,1760472632258,-150.99,0.00016288,2]
[391295150,1760472632267,-550.0,0.00016289,2]
[391295151,1760472632276,-3650.90862879,0.0001629,2]
[391295152,1760472632349,-1000.94974289,0.0001629,2]
[391295174,1760472638015,-309.07951025,0.0001629,2]
[391295175,1760472638030,-9.89211807,0.0001629,2]
[391295176,1760472638042,-469.64745598,0.0001629,2]
[391295177,1760472638055,-484.55637189,0.0001629,2]
[391295178,1760472638085,-15.43362811,0.0001629,2]
[391295179,1760472638098,-151.0,0.0001629,2]
[391295180,1760472638111,-325.67066681,0.0001629,2]
[391295216,1760472640250,-400.0,0.0001629,2]
[391295217,1760472640424,-1202.58317692,0.0001629,2]
[391295218,1760472640466,-3611.2344688,0.0001629,2]
[391295219,1760472640542,-4044.99944871,0.0001629,2]
[391295225,1760472642938,-415.50223876,0.0001629,2]
[391295226,1760472642948,-1200.63332236,0.0001629,2]
[391295227,1760472643099,-3741.3615487,0.0001629,2]
[391295228,1760472643112,-1697.18512894,0.0001629,2]
[391295229,1760472643124,-277.35679052,0.0001629,2]
[391295230,1760472643133,-1000.0,0.00016298,2]
[391295231,1760472643143,-18636.27695554,0.000163,2]
[391295232,1760472643154,-3096.29144446,0.000163,2]
[391295233,1760472643164,-1535.12488262,0.0001633,2]
[391295234,1760472643173,-653.5044771,0.0001633,2]
[391295235,1760472643183,-4426.69003598,0.0001633,2]
[391295236,1760472643192,-467.61794198,0.0001633,2]
[391295237,1760472643201,-487.73712021,0.0001633,2]
[391295238,1760472643210,-351.0399459,0.0001633,2]
[391295239,1760472643220,-5000.0,0.0001633,2]
[391295240,1760472643230,-2500.0,0.0001633,2]
[391295241,1760472643239,-2473.81368,0.0001634,2]
[391295242,1760472643249,-2473.81369,0.0001635,2]
[391295243,1760472643258,-2473.81369,0.0001636,2]
[391295244,1760472643268,-4426.69003591,0.00016361,2]
[391295245,1760472643277,-2473.81369,0.0001637,2]
[391295246,1760472643287,-2473.81369,0.0001638,2]
[391295247,1760472643296,-2473.81368,0.0001638,2]
[391295248,1760472643306,-159.28,0.00016382,2]
[391295249,1760472643315,-1535.1248826,0.00016392,2]
[391295250,1760472643324,-3165.91034393,0.00016393,2]
[391295253,1760472643441,-1260.77969198,0.00016393,2]
[391295255,1760472643451,-511.72030802,0.000164,2]
[391295257,1760472643463,-34.73969198,0.000164,2]
[391295258,1760472643472,-168.12,0.000164,2]
[391295259,1760472643482,-150.0,0.000164,2]
[391295260,1760472643491,-546.46,0.000164,2]
[391295261,1760472643501,-168.17,0.000164,2]
[391295262,1760472643511,-150.0,0.000164,2]
[391295263,1760472643521,-500.0,0.00016413,2]
[391295264,1760472643531,-151.0,0.00016419,2]
[391295265,1760472643540,-2000.0,0.00016419,2]
[391295266,1760472643550,-151.0,0.00016419,2]
[391295267,1760472643559,-1518.74172811,0.00016419,2]
[391295284,1760472744983,272.49,0.00027397,120]
[391295285,1760472746857,380.0,0.00027397,120]
[391295286,1760472785573,1697.35986758,0.00027397,120]
[391295287,1760472797425,500.0,0.00025725,120]
[391295289,1760472797813,500.0,0.00026825,120]
[391295290,1760472802676,2000.0,0.00025527,120]
[391295291,1760472803046,2000.0,0.00026429,120]
[391295292,1760472803476,2000.0,0.00027331,120]
[391295293,1760472806706,-3000.0,0.00030257,120]
[391295294,1760472806732,-722.0,0.00030257,120]
[391295295,1760472806757,-9102.91439664,0.00030257,120]
[391295296,1760472806784,-337.0,0.00030257,120]
[391295297,1760472806810,-722.0,0.00030257,120]
[391295298,1760472806837,-344.0,0.00030257,120]
[391295299,1760472806865,-500.0,0.00030257,120]
[391295300,1760472806891,-500.0,0.00030257,120]
[391295301,1760472806918,-308.10719937,0.00030257,120]
[391295302,1760472806946,-1500.0,0.00030257,120]
[391295303,1760472806974,-1495.28,0.00030257,120]
[391295304,1760472807002,-1000.0,0.00030257,60]
[391295305,1760472807030,-1000.0,0.00030257,60]
[391295306,1760472807058,-1000.0,0.00030257,60]
[391295307,1760472807090,-440.93121685,0.00030257,120]
[391295308,1760472807116,-1000.0,0.00030257,120]
[391295309,1760472807146,-1000.0,0.00030257,60]
[391295310,1760472807173,-1000.0,0.00030257,60]
[391295311,1760472807200,-500.0,0.00030257,120]
[391295312,1760472807228,-500.0,0.00030257,120]
[391295313,1760472807257,-500.0,0.00030257,120]
[391295314,1760472807285,-500.0,0.00030257,120]
[391295315,1760472807310,-1000.0,0.00030257,60]
[391295316,1760472807337,-500.0,0.00030257,120]
[391295317,1760472807362,-500.0,0.00030257,120]
[391295318,1760472807388,-500.0,0.00030257,120]
[391295319,1760472807415,-500.0,0.00030257,120]
[391295320,1760472807440,-500.0,0.00030257,120]
[391295321,1760472807467,-500.0,0.00030257,120]
[391295322,1760472807492,-500.0,0.00030257,120]
[391295323,1760472807518,-500.0,0.00030257,120]
[391295324,1760472807544,-644.31920435,0.00030257,120]
[391295325,1760472807569,-1000.02,0.00030257,60]
[391295326,1760472807593,-1166.4544255,0.00030257,60]
[391295327,1760472807618,-663.00561564,0.00030257,120]
[391295328,1760472807643,-2753.11,0.00030257,120]
[391295329,1760472807668,-2753.11,0.00030257,120]
[391295330,1760472807692,-2753.11,0.00030257,120]
[391295331,1760472807718,-2753.11,0.00030257,120]
[391295332,1760472807742,-2753.11,0.00030257,120]
[391295333,1760472807767,-2753.11,0.00030257,120]
[391295334,1760472807794,-2753.11,0.00030257,120]
[391295335,1760472807819,-2753.11,0.00030257,120]
[391295336,1760472807843,-2753.11,0.00030257,120]
[391295337,1760472807868,-2753.11,0.00030257,120]
[391295338,1760472807894,-2753.11,0.00030257,120]
[391295339,1760472807920,-2753.11,0.00030257,120]
[391295340,1760472807946,-2753.11,0.00030257,120]
[391295341,1760472807971,-2058.53033213,0.00030257,70]
[391295342,1760472807997,-2753.11,0.00030257,120]
[391295343,1760472808022,-2753.11,0.00030257,120]
[391295344,1760472808047,-2753.11,0.00030257,120]
[391295345,1760472808074,-2753.11,0.00030257,120]
[391295346,1760472808099,-2753.11,0.00030257,120]
[391295347,1760472808126,-2753.11,0.00030257,120]
[391295348,1760472808154,-2753.11,0.00030257,120]
[391295349,1760472808180,-2753.11,0.00030257,120]
[391295350,1760472808206,-2753.11,0.00030257,120]
[391295351,1760472808231,-2753.11,0.00030257,120]
[391295352,1760472808256,-2753.34756837,0.00030257,120]
[391295353,1760472808281,-200.0,0.00030257,120]
[391295356,1760472814127,500.0,0.00026059,120]
[391295357,1760472828007,983.37628066,0.00030257,60]
[391295358,1760472849799,3000.0,0.00030257,60]
[391295359,1760472850076,625.0,0.00030257,60]
[391295369,1760472896268,1202.68,7.746e-05,2]
[391295370,1760472896451,1202.68,8.154e-05,2]
[391295371,1760472896666,1202.68,8.561e-05,2]
[391295372,1760472896873,1202.68,8.969e-05,2]
[391295373,1760472897152,1202.68,9.377e-05,2]
[391295374,1760472897297,1202.68,9.784e-05,2]
[391295375,1760472897497,1202.68,0.00010192,2]
[391295376,1760472897723,1202.68,0.000106,2]
[391295377,1760472897930,1202.68,0.00011007,2]
[391295378,1760472898145,1202.68,0.00011415,2]
[391295379,1760472898380,1202.68,0.00011823,2]
[391295380,1760472898600,1202.68,0.0001223,2]
[391295381,1760472898817,567.84,0.00012638,2]
[391295382,1760472898838,634.84,0.00012638,2]
[391295388,1760472962604,200.0,0.00030268,120]
[391295393,1760473103496,3000.0,0.00030268,120]
[391295402,1760473261075,200.0,0.00030272,120]
[391295403,1760473378955,2723.89,0.00027397,120]
[391295404,1760473399692,2000.0,0.0002538,120]
[391295405,1760473400055,2000.0,0.00026135,120]
[391295406,1760473400419,2000.0,0.00026889,120]
[391295407,1760473415096,500.0,0.00026067,120]
[391295408,1760473466227,3000.0,0.0003032,120]
[391295409,1760473508835,3175.89818059,0.0003032,90]
[391295410,1760473510010,2383.31429305,0.0003032,120]
[391295411,1760473510997,999.999998,0.0003032,120]
[391295412,1760473512437,419.84206909,0.0003032,60]
[391295413,1760473512665,2402.26270553,0.0003032,120]
[391295414,1760473512848,548.2816967,0.0003032,91]
[391295415,1760473513011,610.96219293,0.0003032,120]
[391295416,1760473516645,538.86484044,0.0003032,120]
[391295417,1760473517801,2964.04914745,0.0003032,120]
[391295418,1760473520483,824.24512343,0.0003032,120]
[391295419,1760473525503,185.35985292,0.0003032,120]
[391295420,1760473532300,158.72858674,0.0003032,120]
[391295421,1760473532339,2486.92062822,0.0003032,120]
[391295422,1760473532623,1020.5306819,0.0002,120]
[391295423,1760473538370,2388.90646048,0.0003032,120]
[391295424,1760473540560,1368.77269063,0.0003032,120]
[391295425,1760473542202,2822.71786078,0.0003032,120]
[391295426,1760473544160,2473.16974486,0.0003032,120]
[391295427,1760473545309,730.54590903,0.0003032,120]
[391295428,1760473556934,1558.05578281,0.0003032,120]
[391295429,1760473563142,200.0,0.0003032,120]
[391295430,1760473563624,459.95318673,0.0003032,120]
[391295431,1760473564024,231.08775673,0.0003032,120]
[391295432,1760473564436,450.7823501,0.0003032,120]
[391295433,1760473568234,383.5450889,0.0003032,60]
[391295434,1760473568543,195.95254504,0.0003032,120]
[391295435,1760473569735,1326.79915084,0.0003032,120]
[391295436,1760473571676,457.65426056,0.0003032,120]
[391295437,1760473574532,610.13330597,0.0003032,120]
[391295440,1760473579709,-953.93884927,0.00013046,2]
[391295442,1760473580307,2029.96397857,0.0003032,120]
[391295445,1760473585748,547.20019048,0.0003032,120]
[391295457,1760473619379,2249.17873421,0.0003032,120]
[391295458,1760473629967,3357.39607914,0.0002301,120]
[391295459,1760473638504,257.00095418,0.000101,2]
[391295461,1760473651111,285.52887469,0.0003032,120]
[391295462,1760473651531,339.28180885,0.0003032,120]
[391295463,1760473655981,373.59419746,0.0003032,120]
[391295464,1760473656708,281.69157504,0.0003032,120]
[391295466,1760473662467,1595.65737666,0.0003032,120]
[391295467,1760473662823,500.88673857,0.0003032,120]
[391295468,1760473662995,1839.50003604,0.0003032,120]
[391295469,1760473663165,525.45505219,0.0003032,120]
[391295470,1760473664730,1323.95268758,0.0003032,120]
[391295471,1760473665836,718.4857544,0.00027,120]
[391295472,1760473666606,2317.05293162,0.0003032,120]
[391295473,1760473668908,340.85187059,0.0003032,120]
[391295474,1760473669453,1520.24604229,0.0003032,120]
[391295475,1760473675527,2893.50022852,0.0003032,120]
[391295476,1760473679145,257.16933609,0.0003032,120]
[391295477,1760473681780,450.38960019,0.0003032,60]
[391295478,1760473682581,189.82710401,0.0003032,120]
[391295479,1760473684671,968.33423703,0.0003032,120]
[391295480,1760473685162,382.04698216,0.0003032,60]
[391295482,1760473696724,647.57108892,0.0003032,120]
[391295483,1760473700967,1265.34235612,0.00027397,120]
[391295484,1760473701674,1905.50197021,0.0003032,120]
[391295485,1760473702464,1474.82592803,0.0003032,120]
[391295486,1760473702938,414.46782583,0.0003032,60]
[391295487,1760473704610,516.74171002,0.0003032,120]
[391295488,1760473704676,423.44100141,0.0003032,120]
[391295489,1760473706021,1356.54568588,0.0003032,120]
[391295490,1760473706078,2443.97257584,0.0003032,80]
[391295491,1760473706125,2149.2748223,0.0003032,120]
[391295492,1760473707009,1636.84840825,0.0003032,120]
[391295493,1760473707054,1530.94968939,0.0003032,120]
[391295494,1760473707597,949.52291,0.0003032,120]
[391295495,1760473708245,1263.81325598,0.0003032,120]
[391295496,1760473708320,1255.39287651,0.0003032,120]
[391295497,1760473708453,2113.79034011,0.0003032,120]
[391295498,1760473708494,1650.6734319,0.0003032,120]
[391295499,1760473708668,720.29369641,0.00027,120]
[391295500,1760473708872,578.6297573,0.0003032,120]
[391295501,1760473710648,809.82156683,0.0003032,120]
[391295502,1760473711336,1726.41596433,0.000246,120]
[391295503,1760473711372,1164.59066487,0.0003032,120]
[391295504,1760473711508,1370.72838753,0.0003032,120]
[391295505,1760473711539,756.0,0.0003032,120]
[391295506,1760473712238,299.04408705,0.0003032,120]
[391295507,1760473712330,2605.56516207,0.0003032,120]
[391295508,1760473713063,900.70707974,0.000199,120]
[391295509,1760473714281,506.23501455,0.0003032,120]
[391295510,1760473714490,189.74917337,0.0003032,120]
[391295511,1760473714928,577.37943523,0.0003032,120]
[391295512,1760473717058,2911.31084508,0.0003032,120]
[391295513,1760473717318,1717.94317275,0.00027,120]
[391295514,1760473717920,2356.54971345,0.0003032,120]
[391295515,1760473718753,444.30311018,0.00022,120]
[391295516,1760473719052,594.3263764,0.0003032,120]
[391295517,1760473720116,353.4994238,0.0003032,60]
[391295518,1760473720846,735.31743578,0.0003032,120]
[391295519,1760473721320,200.78960091,0.0003032,120]
[391295520,1760473721485,1703.66504143,0.0003032,120]
[391295521,1760473721572,193.63171348,0.0003032,120]
[391295522,1760473721608,1289.66952491,0.0003032,120]
[391295523,1760473721660,1643.39902949,0.0003032,120]
[391295524,1760473721693,271.15996579,0.0003032,120]
[391295525,1760473722236,1440.96544243,0.0003032,120]
[391295526,1760473722291,197.63,0.00011616,2]
[391295527,1760473722730,3028.31892973,0.0002739,120]
[391295528,1760473723488,2901.52443706,0.0003032,60]
[391295529,1760473723544,2117.4539558,0.0003032,120]
[391295530,1760473723800,1178.2173201,0.000271,120]
[391295531,1760473723838,152.68173119,0.0003032,120]
[391295532,1760473723878,363.31034556,0.0003032,120]
[391295533,1760473723916,214.36600647,0.00025,120]
[391295534,1760473723984,2450.86521948,0.0003032,120]
[391295535,1760473724318,2763.70850876,0.00025,120]
[391295536,1760473724537,314.96255889,0.0003032,120]
[391295537,1760473724804,161.22542936,0.00012,2]
[391295538,1760473724956,1479.858577,0.0003032,120]
[391295539,1760473725453,500.0,0.0003032,120]
[391295540,1760473725545,728.63359252,0.0003032,120]
[391295541,1760473725611,3063.94044632,0.0003032,120]
[391295542,1760473725672,151.20446216,0.0003032,120]
[391295543,1760473725904,183.6749789,0.0003032,120]
[391295544,1760473725975,629.29342427,0.0003032,120]
[391295545,1760473726022,200.14026267,0.00021,120]
[391295586,1760473832008,-248.74115073,0.00013046,2]
[391295588,1760473832018,-152.43304588,0.00013249,2]
[391295593,1760473832065,-22.45402159,0.00013249,2]
[391295594,1760473832075,-1202.68,0.00013453,2]
[391295595,1760473832084,-423.97,0.00013699,2]
[391295596,1760473832094,-1202.68,0.00013861,2]
[391295597,1760473832103,-1202.68,0.00014269,2]
[391295598,1760473832113,-212.0,0.00014349,2]
[391295599,1760473832122,-300.0,0.00014349,2]
[391295600,1760473832132,-300.0,0.00014349,2]
[391295601,1760473832143,-46.0884884,0.00014349,2]
[391295602,1760473832165,-461.1545419,0.00014349,2]
[391295603,1760473832270,-692.7569697,0.00014349,2]
[391295604,1760473832280,-150.0,0.00014349,2]
[391295605,1760473832289,-893.95005348,0.0001435,2]
[391295606,1760473832299,-195.0,0.0001435,2]
[391295607,1760473832308,-935.3901151,0.0001435,2]
[391295608,1760473832319,-300.0,0.0001435,2]
[391295609,1760473832332,-313.46581895,0.0001435,2]
[391295610,1760473832341,-250.0,0.0001435,2]
[391295611,1760473832351,-2500.0,0.0001435,2]
[391295613,1760473832360,-2000.0,0.0001435,2]
[391295615,1760473832371,-250.0,0.0001435,2]
[391295617,1760473832381,-197.63,0.0001452,2]
[391295619,1760473832393,-609.24,0.00014547,2]
[391295621,1760473832402,-572.0,0.00014566,2]
[391295623,1760473832411,-1202.68,0.00014676,2]
[391295625,1760473832421,-312.5,0.00014766,2]
[391295627,1760473832430,-265.81,0.00014873,2]
[391295629,1760473832440,-500.0,0.00014999,2]
[391295631,1760473832450,-551.83234738,0.00014999,2]
[391295633,1760473832459,-214.05554184,0.00014999,2]
[391295635,1760473832469,-500.0,0.00014999,2]
[391295637,1760473832478,-500.0,0.00014999,2]
[391295638,1760473832488,-500.0,0.00014999,2]
[391295640,1760473832498,-500.0,0.00014999,2]
[391295642,1760473832508,-500.0,0.00014999,2]
[391295644,1760473832518,-500.0,0.00014999,2]
[391295646,1760473832527,-500.0,0.00014999,2]
[391295648,1760473832536,-500.0,0.00014999,2]
[391295650,1760473832546,-500.0,0.00014999,2]
[391295652,1760473832555,-500.0,0.00014999,2]
[391295654,1760473832564,-500.0,0.00014999,2]
[391295655,1760473832574,-500.0,0.00014999,2]
[391295656,1760473832584,-500.0,0.00014999,2]
[391295657,1760473832593,-500.0,0.00014999,2]
[391295658,1760473832603,-500.0,0.00014999,2]
[391295659,1760473832612,-500.0,0.00014999,2]
[391295660,1760473832622,-500.0,0.00014999,2]
[391295661,1760473832631,-500.0,0.00014999,2]
[391295662,1760473832641,-500.0,0.00014999,2]
[391295663,1760473832650,-500.0,0.00014999,2]
[391295664,1760473832659,-500.0,0.00014999,2]
[391295665,1760473832668,-500.0,0.00014999,2]
[391295666,1760473832677,-500.0,0.00014999,2]
[391295667,1760473832687,-500.0,0.00014999,2]
[391295668,1760473832696,-500.0,0.00014999,2]
[391295669,1760473832706,-500.0,0.00014999,2]
[391295670,1760473832715,-500.0,0.00014999,2]
[391295671,1760473832724,-500.0,0.00014999,2]
[391295672,1760473832733,-500.0,0.00014999,2]
[391295673,1760473832743,-500.0,0.00014999,2]
[391295674,1760473832752,-549.92835897,0.00014999,2]
[391295675,1760473832761,-500.0,0.00014999,2]
[391295676,1760473832770,-500.0,0.00014999,2]
[391295677,1760473832779,-500.0,0.00014999,2]
[391295678,1760473832789,-500.0,0.00014999,2]
[391295679,1760473832798,-500.0,0.00014999,2]
[391295680,1760473832807,-500.0,0.00014999,2]
[391295681,1760473832816,-500.0,0.00014999,2]
[391295682,1760473832825,-500.0,0.00014999,2]
[391295683,1760473832835,-500.0,0.00014999,2]
[391295684,1760473832844,-500.0,0.00014999,2]
[391295685,1760473832853,-500.0,0.00014999,2]
[391295686,1760473832862,-500.0,0.00014999,2]
[391295687,1760473832872,-500.0,0.00014999,2]
[391295688,1760473832881,-500.0,0.00014999,2]
[391295689,1760473832891,-500.0,0.00014999,2]
[391295690,1760473832900,-500.0,0.00014999,2]
[391295691,1760473832910,-500.0,0.00014999,2]
[391295692,1760473832919,-500.0,0.00014999,2]
[391295693,1760473832928,-500.0,0.00014999,2]
[391295694,1760473832938,-500.0,0.00014999,2]
[391295695,1760473832947,-500.0,0.00014999,2]
[391295696,1760473833292,-500.0,0.00014999,2]
[391295697,1760473833303,-500.0,0.00014999,2]
[391295698,1760473833312,-500.0,0.00014999,2]
[391295699,1760473833324,-500.0,0.00014999,2]
[391295700,1760473833333,-500.0,0.00014999,2]
[391295701,1760473833342,-500.0,0.00014999,2]
[391295702,1760473833352,-500.0,0.00014999,2]
[391295703,1760473833361,-500.0,0.00014999,2]
[391295704,1760473833370,-500.0,0.00014999,2]
[391295705,1760473833380,-500.0,0.00014999,2]